Cogmind - Beta 10.2 --- EXPLORER MODE // 2021.06.27 @ 16:02:28 Player: ConfiG Result: Destroyed by G-47 Trooper with Particle Gun Performance ------------- Evolutions (2) 1000 Regions Visited (3) 600 Robots Destroyed (42) 210 Value Destroyed (1214) 1214 Prototype IDs (2) 40 Alien Tech Used (0) 0 Bonus (0) 0 TOTAL SCORE: 3064 Bonus ------- None Cogmind --------- Core Integrity 0/550 Matter 300/300 Energy 100/100 System Corruption 0% Temperature Cool (9) Movement Core (200) Ox3 Location -8/Materials Parts ------- > --- POWER (1) -------- (None) > --- PROPULSION (2) --- (None) > --- UTILITY (6) ------ Medium Storage Unit Improved ECM Suite Hacking Suite > --- WEAPON (3) ------- Katana > --- INVENTORY (8) ---- Medium Storage Unit Improved Signal Interpreter Terrain Scanner Propulsion Shielding Improved Light Cannon Peak State ------------ > --- POWER ------------ Heavy Ion Engine > --- PROPULSION ------- Improved Hover Unit Improved Hover Unit > --- UTILITY ---------- Medium Storage Unit Advanced Sensor Array Targeting Computer Improved ECM Suite Hacking Suite System Shield > --- WEAPON ----------- Heavy Laser Proton Missile Launcher Katana > --- INVENTORY -------- Light Nuclear Core Medium Storage Unit Improved Signal Interpreter Terrain Scanner Propulsion Shielding Improved Light Cannon Improved Light Cannon [Rating: 33] Favorites ----------- Power Heavy Ion Engine Engine Heavy Ion Engine Power Core Light Nuclear Core Propulsion Light Treads Treads Light Treads Wheel Wheel Hover Unit Improved Hover Unit Utility Propulsion Shielding Device Sensor Array Storage Small Storage Unit Processor Targeting Computer Hackware Hacking Suite Protection Propulsion Shielding Weapon EM Pulse Gun Energy Gun EM Pulse Gun Ballistic Gun Light Assault Rifle Ballistic Cannon Improved Light Cannon Launcher Proton Missile Launcher Slashing Weapon Katana Build | -11 -10 -9 -8 ------- Run | Scr Mat Mat Mat Slots Evolved 5 | . 1 2 2 Power . | . . . . Propulsion . | . . . . Utility 4 | . 1 1 2 Weapon 1 | . . 1 . Parts Attached 54 | 9 11 13 21 Power 5 | 1 1 1 2 Engine 3 | 1 . 1 1 Core 2 | . 1 . 1 Reactor . | . . . . Propulsion 11 | 2 4 3 2 Treads 7 | . 4 3 . Leg . | . . . . Wheel 2 | 2 . . . Hover 2 | . . . 2 Flight . | . . . . Utility 18 | 3 3 4 8 Device 6 | 1 1 . 4 Storage 2 | . . . 2 Processor 2 | 1 . 1 . Hackware 2 | . . 1 1 Protection 6 | 1 2 2 1 Artifact . | . . . . Weapon 20 | 3 3 5 9 Energy Gun 6 | 1 1 1 3 Energy Cannon . | . . . . Ballistic Gun 8 | 2 2 4 . Ballistic Cannon 3 | . . . 3 Launcher 1 | . . . 1 Special Weapon . | . . . . Impact Weapon . | . . . . Slashing Weapon 2 | . . . 2 Piercing Weapon . | . . . . Special Melee Weapon . | . . . . Unidentified Prototypes . | . . . . Parts Lost 18 | . . . 18 Power 2 | . . . 2 Propulsion 4 | . . . 4 Utility 4 | . . . 4 Weapon 8 | . . . 8 Highest Loss Streak 5 | . . . 5 Average Slot Usage (%) 93 | . 98 99 85 Engine 7 | . 11 7 6 Core 1 | . . 2 . Treads 14 | . 21 19 5 Hover 2 | . . . 5 Device 6 | . 10 4 6 Storage 3 | . . . 8 Processor 7 | . 1 10 7 Hackware 8 | . . 5 14 Protection 15 | . 24 19 7 Energy Gun 8 | . 12 10 4 Ballistic Gun 12 | . 11 20 4 Ballistic Cannon 1 | . . . 2 Slashing Weapon 2 | . . . 4 Naked Turns . | . . . . Heaviest Build 32 | 9 14 19 32 Greatest Support 40 | 20 40 40 40 Greatest Overweight (x) 6 | . 2 . 6 Average Overweight (x) . | . . . 1 Largest Inventory Capacity 8 | 4 4 4 8 Average Capacity 5 | 4 4 4 6 Most Carried 7 | 4 4 4 7 Average Carried 3 | 3 3 3 4 Final Capacity 8 | 4 4 4 8 Final Carried 5 | 4 4 4 5 Class Distribution -------------------- 54% | Hacker-Mutant 43% | Hacker-Tank Dominant Class ---------------- Hacker-Mutant | -10/Materials Hacker-Tank | -9/Materials Hacker-Mutant | -8/Materials Resources | -11 -10 -9 -8 ----------- Run | Scr Mat Mat Mat Matter Collected 1029 | 299 134 187 409 Remotely . | . . . . Salvage Created 1450 | 48 184 514 704 Parts 97 | 3 18 39 37 Haulers Intercepted . | . . . . Recyclers Shooed . | . . . . Parts Field Recycled . | . . . . Retrieved Matter . | . . . . Parts Self-Destructed . | . . . . Prevented . | . . . . Kills | -11 -10 -9 -8 ------- Run | Scr Mat Mat Mat Combat Hostiles Destroyed 34 | 1 5 15 13 Melee 1 | . . . 1 Guns 26 | 1 5 13 7 Cannons 4 | . . . 4 AOE 3 | . . 2 1 Classes Destroyed 9 | 1 2 1 5 Worker 1 | . . . 1 Tunneler 1 | . . . 1 Recycler 1 | . . . 1 Watcher 5 | . 3 1 1 Swarmer 11 | . 4 5 2 Grunt 14 | 1 1 8 4 Duelist 1 | . . . 1 Sentry 6 | . . 2 4 Hunter 2 | . . . 2 Best Kill Streak 4 | 1 4 4 3 Combat Bots Only 3 | 1 2 3 2 Max Kills in Single Turn 2 | 1 1 1 2 Gunslinging . | . . . . Exploded 1 | . . 1 1 Melee 1 | . . . 1 Uniques/NPCs Destroyed . | . . . . Combat | -11 -10 -9 -8 -------- Run | Scr Mat Mat Mat Damage Taken 2336 | 7 112 206 2011 Core 627 | . 33 40 554 Absorbed by Shields . | . . . . Core Remaining (%) 92 | 100 86 90 . Volleys Fired 93 | 3 17 26 47 Largest 3 | 2 2 3 3 Hottest 108 | 60 60 83 108 Shots Fired 207 | 6 34 78 89 Gun 185 | 6 34 78 67 Cannon 14 | . . . 14 Launcher 8 | . . . 8 Special . | . . . . Kinetic 128 | 3 17 52 56 Thermal 11 | . . . 11 Explosive . | . . . . Electromagnetic 68 | 3 17 26 22 Robot Hit Streak 53 | 6 13 53 23 Robot Miss Streak 2 | . 2 1 1 Penetration Max . | . . . . Secondary Targets 4 | . 1 1 2 Max Gunslinging Chain 1 | . 1 1 1 Shots Hit Robots 170 | 6 25 57 82 Core Hits 73 | 1 10 28 34 Critical Hits . | . . . . Critical Kills . | . . . . Critical Parts Destroyed . | . . . . Melee Attacks 4 | . . . 4 Impact . | . . . . Slashing 4 | . . . 4 Piercing . | . . . . Sneak Attacks . | . . . . Combat Hostiles . | . . . . Follow-up Attacks . | . . . . Damage Inflicted 2747 | 76 307 745 1619 Guns 1770 | 76 307 664 723 Cannons 274 | . . . 274 Explosions 575 | . . 81 494 Melee 128 | . . . 128 Ramming . | . . . . Kinetic 1151 | 39 116 355 641 Thermal 271 | . . 81 190 Explosive 132 | . . . 132 Electromagnetic 1065 | 37 191 309 528 Impact . | . . . . Slashing 128 | . . . 128 Piercing . | . . . . Highest Corruption . | . . . . Average Corruption . | . . . . Corruption Purged . | . . . . Overload Shots . | . . . . Overflow Damage 43 | . . . 43 Projectiles . | . . . . Explosions 15 | . . . 15 Melee 28 | . . . 28 Knockbacks 1 | . . . 1 Impact . | . . . . Kinetic 1 | . . . 1 Secondary . | . . . . Self-Inflicted Damage 73 | . . . 73 Shots 2 | . . . 2 Rammed . | . . . . Targets Rammed . | . . . . Kicked . | . . . . Crushed . | . . . . Highest Temperature 189 | 6 54 97 189 Average Temperature 39 | 6 18 40 51 Received Heat Transfer 876 | 6 36 132 702 Siege Activations . | . . . . Robots Corrupted . | . . . . Combat Hostiles . | . . . . Parts Fried . | . . . . Impact Corruptions . | . . . . Robots Melted . | . . . . Combat Hostiles . | . . . . Parts Melted . | . . . . Heat Transferred 520 | . . 150 370 Parts Sabotaged . | . . . . Parts Stolen . | . . . . Parts Stripped . | . . . . Power Chain Reactions 2 | . . 2 . Missiles Intercepted . | . . . . Alert | -11 -10 -9 -8 ------- Run | Scr Mat Mat Mat Peak Influence 305 | 20 240 235 305 Initial 72 | . 9 72 65 Average 102 | 16 92 117 122 Maximum Alert Level 1 | . 1 1 1 Low Security (%) 83 | 100 88 85 74 Level 1 16 | . 11 14 25 Level 2 . | . . . . Level 3 . | . . . . Level 4 . | . . . . Level 5 . | . . . . High Security . | . . . . Max Security . | . . . . Squads Dispatched 8 | . . 7 1 Investigation 4 | . . 3 1 Extermination . | . . . . Reinforcement 4 | . . 4 . Assault . | . . . . Garrison . | . . . . Intercept . | . . . . Construction Impeded . | . . . . Haulers Reinforced . | . . . . Stealth | -11 -10 -9 -8 --------- Run | Scr Mat Mat Mat Distress Signals 5 | . . 2 3 Communications Jammed . | . . . . Distress Signals . | . . . . Times Spotted 63 | 1 10 23 29 Peak Tracking Total 7 | 1 2 4 7 Tactical Retreats 8 | . 2 1 5 Traps | -11 -10 -9 -8 ------- Run | Scr Mat Mat Mat Traps Triggered 2 | . 2 . . Indirectly . | . . . . Trap Hack Attempts . | . . . . Triggered . | . . . . Disarmed . | . . . . Reprogrammed . | . . . . Reused . | . . . . Traps Extracted . | . . . . Installed . | . . . . Triggered . | . . . . Machines | -11 -10 -9 -8 ---------- Run | Scr Mat Mat Mat Machines Disabled 3 | . . . 3 Max in Single Turn 1 | . . . 1 Machines Sabotaged . | . . . . Garrisons Compromised . | . . . . Overloaded Fab Kills . | . . . . Fab Network Shutdowns . | . . . . Hacking | -11 -10 -9 -8 --------- Run | Scr Mat Mat Mat Machines Accessed 11 | . 2 6 3 Terminals 7 | . 2 3 2 Fabricators . | . . . . Repair Stations 3 | . . 2 1 Recycling Units 1 | . . 1 . Scanalyzers . | . . . . Garrison Access . | . . . . Total Hacks 48 | . 7 23 18 Successful 41 | . 4 19 18 Failed 7 | . 3 4 . Catastrophic . | . . . . Database Lockouts . | . . . . Manual . | . . . . Terminals 34 | . 7 13 14 Fabricators . | . . . . Repair Stations 9 | . . 5 4 Recycling Units 5 | . . 5 . Scanalyzers . | . . . . Garrison Access . | . . . . Terminal Hacks 28 | . 4 10 14 Record 16 | . . 3 13 Prototype ID Bank 1 | . 1 . . Alert Level 2 | . 1 1 . Locate Traps 2 | . . 2 . Patrol Status 1 | . 1 . . Investigation Status 1 | . 1 . . Reinforcement Status 2 | . . 2 . Assault Status 2 | . . 1 1 Recall Reinforcements 1 | . . 1 . Fabricator Hacks . | . . . . Repair Station Hacks 8 | . . 4 4 Scan Component 4 | . . 2 2 Repair 4 | . . 2 2 Recycling Unit Hacks 5 | . . 5 . Recycle Component 1 | . . 1 . Process 1 | . . 1 . Report Inventory 1 | . . 1 . Retrieve Matter 1 | . . 1 . Retrieve Components 1 | . . 1 . Scanalyzer . | . . . . Garrison Access Hacks . | . . . . Unauthorized Hacks . | . . . . Terminals . | . . . . Fabricators . | . . . . Repair Stations . | . . . . Recycling Units . | . . . . Scanalyzers . | . . . . Garrison Access . | . . . . Data Cores Recovered . | . . . . Used . | . . . . Hacking Detections 8 | . 2 5 1 Full Trace Events 6 | . 1 4 1 Feedback Events . | . . . . Feedback Blocked . | . . . . Robot Schematics Acquired . | . . . . Robots Built . | . . . . Matter . | . . . . Time . | . . . . Total Robot Build Rating . | . . . . Part Schematics Acquired . | . . . . Parts Built . | . . . . Matter . | . . . . Time . | . . . . Total Part Build Rating . | . . . . Parts Repaired 4 | . . 2 2 Time 104 | . . 52 52 Parts Recycled 1 | . . 1 . Recycled Matter . | . . . . Retrieved Matter . | . . . . Retrieved Components 10 | . . 10 . Parts Scanalyzed . | . . . . Part Schematics Acquired . | . . . . Parts Damaged . | . . . . Bothacking | -11 -10 -9 -8 ------------ Run | Scr Mat Mat Mat Used RIF Installer . | . . . . Robots Hacked . | . . . . Non-combat . | . . . . Combat . | . . . . Robot Hacks Applied . | . . . . Relay Couplers Released . | . . . . Robots Rewired . | . . . . Allies Hacked . | . . . . Hacks Repelled . | . . . . Allies | -11 -10 -9 -8 -------- Run | Scr Mat Mat Mat Total Allies . | . . . . Largest Group . | . . . . Highest-Rated Group . | . . . . Highest-Rated Ally . | . . . . Total Orders . | . . . . Ally Attacks . | . . . . Total Damage . | . . . . Kills . | . . . . Allies Corrupted . | . . . . Allies Melted . | . . . . Intel | -11 -10 -9 -8 ------- Run | Scr Mat Mat Mat Robot Analysis Total . | . . . . Derelict Logs Recovered . | . . . . Drone Launches . | . . . . Drone Recoveries . | . . . . Exploration | -11 -10 -9 -8 ------------- Run | Scr Mat Mat Mat Turns Passed 2759 | 360 385 1030 984 Spaces Moved 1335 | 118 210 536 471 Core 88 | 16 1 . 71 Treads 827 | . 157 536 134 Legs . | . . . . Wheels 154 | 102 52 . . Hover 266 | . . . 266 Flight . | . . . . Fastest Speed 50 | 50 80 160 116 Average Speed 149 | 75 140 160 160 Slowest Speed 350 | 80 160 160 350 Overloaded Moves . | . . . . Propulsion Burnouts . | . . . . Robots Hopped . | . . . . Cave-ins Triggered . | . . . . Exploration Rate (%) 37 | 14 48 34 54 Regions Visited 3 Branch Regions . Pre-discovered Areas . | . . . . Known Exits Taken 3 | 1 1 1 . Unknown Exits Taken . | . . . . Scrap Searched . | . . . . Spaces Dug . | . . . . Terrain Destroyed 32 | . . 12 20 Melee . | . . . . Projectile . | . . . . AOE 32 | . . 12 20 Terrain Rammed . | . . . . Walls Destroyed . | . . . . Machines Disabled . | . . . . Actions | -11 -10 -9 -8 --------- Run | Scr Mat Mat Mat Total 1918 | 380 265 656 617 Wait 377 | 242 20 62 53 Move 1332 | 117 209 535 471 Hop . | . . . . Pick Up 41 | 9 3 11 18 Fast Attach 11 | 2 8 1 . Attach 24 | 5 2 3 14 Detach 1 | . 1 . . Swap 19 | 2 1 9 7 Drop 16 | . 4 9 3 Fire 93 | 3 17 26 47 Melee 4 | . . . 4 Ram . | . . . . Kick . | . . . . Crush . | . . . . Escape Stasis . | . . . . Rewire . | . . . . Trap . | . . . . Miscellaneous . | . . . . Route ------- -11/Scrapyard -10/Materials (discovered 2 exits: *Mat / *Min) -9/Materials -8/Materials History --------- Turn | Location | Event 2 | -11/Scrapyard | Met Revision 17 44 | -11/Scrapyard | Identified exit to Materials 44 | -11/Scrapyard | Discovered exit to Materials (range 8) 361 | -11/Scrapyard | Entered Materials 361 | -10/Materials | Evolved 1 slot: Utility x1 382 | -10/Materials | Build established: Hacker-Mutant 608 | -10/Materials | Identified exit to Mines 608 | -10/Materials | Discovered exit to Mines (range 13) 737 | -10/Materials | Identified exit to Materials 737 | -10/Materials | Discovered exit to Materials (range 4) 746 | -10/Materials | Entered another Materials area 746 | -9/Materials | Evolved 2 slots: Utility x1, Weapon x1 906 | -9/Materials | Repaired Lgt. Treads 1048 | -9/Materials | Build established: Hacker-Tank 1624 | -9/Materials | Identified exit to Materials 1624 | -9/Materials | Discovered exit to Materials (range 14) 1665 | -9/Materials | Repaired Lgt. Armor Plating 1776 | -9/Materials | Entered another Materials area 1776 | -8/Materials | Evolved 2 slots: Utility x2 1856 | -8/Materials | Repaired EM Pulse Gun 1912 | -8/Materials | Repaired Propulsion Shielding 2088 | -8/Materials | Lost 4 parts (1u3w) 2331 | -8/Materials | Build established: Hacker-Mutant 2532 | -8/Materials | Core integrity fell below 50% 2583 | -8/Materials | Lost 5 parts (2n3w) 2605 | -8/Materials | Core integrity fell below 20% 2648 | -8/Materials | Lost 4 parts (2p2u) 2760 | -8/Materials | Destroyed by G-47 Trooper with Particle Gun Last Messages --------------- 02609_ K-01 Serf cleans the Purification Channel. 02610_ G-47 Trooper knocked back. 02613_ K-01 Serf cleans the Purification Channel. 02617_ System Shield destroyed. 02617_ Hvy. Ion Engine destroyed. 02618_ L-31 Rogue destroyed. 02620_ G-47 Trooper destroyed. 02622_ K-01 Serf cleans the Purification Channel. 02624_ Acquired 26 matter. 02632_ Acquired Katana. 02636_ K-01 Serf collects debris. 02640_ Acquired Particle Gun. 02642_ K-01 Serf collects debris. 02643_ Acquired 20 matter. 02645_ K-01 Serf collects debris. 02715_ W-25 Informer distress signal alerts nearby ally. 02727_ Targeting Computer destroyed. 02754_ Particle Gun destroyed. 02755_ Imp. Light Cannon destroyed. [Achievement: First Step to Greatness] Map ----- +----------------------------------------------------+ | | | | | | | | | | | | | | | | | | | | | | | | | | | ?????????????????????????????????????????????????? | | ?????????????????????????????????????????????????? | | ?????????????????#########???????????????????????? | | ?????????????????# #???????????????????????? | | #????????????##### #???????????????????????? | | #???????????? #???????????????????????? | | ?????????????? +???????????????????????? | | #??????????????? ????????????????????????? | | #????????????????# ????????????????????????? | | #????????????????# ????????????????????????? | | #?????????????????# #????????????????????????? | | #?????????###?#???# ##+######### #????????? | | #?????????? ??# @ #??????### | | #???????????? ## ###?????????????# | | #??????????????? + w #???????????????# | | #????????????????## g #???????????????# | | #?????????????????# #???????????????# | | #####+#??????????####g#### #???????????????# | | ########+### #? #???????????????# | | # #? +?????????????### | | # """ #? #????????????##T# | | + """ #? +????????????# | | """ """ # """ #? #????????????# | | """"""""" # #? #????????????# | | """"" " ########? #????????????# | | #????????? #????????????# "" | | ???????? #????????????# "" | | """ """ ####???????# #?#????????????# T" | | """"""""" #???????????????????????????# "" | | """"" " ######???????????????????????????# "" | | #????????????????????????????????# | | ###########??????????????????????# | | """ """ ??????????????????????# ##+# | | """"""""" ?????????????????????# # | | """"" " ?????????????????????# #! | | ?????????????????????# # " | | ????????????????????# + " | +----------------------------------------------------+ Best States ------------- Heat Dissipation 31 Energy Generation 14 Energy Capacity 280 Matter Stores 300 Matter Capacity 300 Sight Range 16 Robot Scan Range 16 Terrain Scan Density 10 ECM Strength 2 Armor Coverage 150 Resistance: KI 35 Resistance: TH 35 Resistance: EX 35 Resistance: EM 35 Resistance: I 35 Resistance: S 35 Resistance: P 35 Propulsion Shielding 33 Evasion (%) 50 Targeting Accuracy 5 Recoil Reduction 2 Offensive Hacking 30 Defensive Hacking 10 Item Schematics ----------------- None Robot Schematics ------------------ None Fabricated ------------ Nothing Alien Tech Used ----------------- None Achievements -------------- First Step to Greatness GoHome() Novice Programmer One Hack Too Far Part-time Mechanic Challenges ------------ None Game ------ Seed DeepFortressBarrier Manual? 0 Play Time 00:51:36 Cumulative 1.6 hours Start 2021.06.27 @ 15:04:23 End 2021.06.27 @ 16:02:28 Sessions 1 Manual Loads 0 Difficulty Explorer Special Mode None Game No. 2 Rogue 0 Adventurer 0 Explorer 2 Win Type - Total 0 Types 0/0/0/0/0/0/0/0/0 Lore% 4 Gallery% 9 Achievement% 8 Wizard Run 0 Options --------- ASCII 1 Keyboard 0 Movement Mouse Keybinds 0 Fullscreen 1 Font 12/Smallcaps Map View 83x54 Tactical HUD 1 Map Filters NONE Filters NONE Steam 1 RUN: d5927e0a-cf53-403e-925a-b44e48250735